[Event "Titled Tuesday Blitz October 31 Late 2023"]
[White "Fiorito, Francisco"]
[Black "De Souza, Cristiano Gomes"]
[WhiteFideId "180165"]
[BlackFideId "2151758"]
[WhiteElo "2610"]
[BlackElo "2239"]
[Result "1-0"]
[Round "2"]
[TimeControl "180+1"]
[Date "2023.10.31"]
[WhiteClock "0:00:40"]
[BlackClock "0:00:27"]
[Board "89"]

1. d4 {[%clk 0:03:00]}  Nf6 {[%clk 0:02:59]} 2. Bf4 {[%clk 0:03:01]}  d6 {[%clk 0:02:59]} 3. h3 {[%clk 0:03:00]}  g6 {[%clk 0:02:57]} 4. e3 {[%clk 0:03:00]}  Bg7 {[%clk 0:02:57]} 5. Nf3 {[%clk 0:03:01]}  O-O {[%clk 0:02:57]} 6. Be2 {[%clk 0:03:01]}  b6 {[%clk 0:02:57]} 7. a4 {[%clk 0:02:59]}  Ba6 {[%clk 0:02:55]} 8. Bxa6 {[%clk 0:02:56]}  Nxa6 {[%clk 0:02:55]} 9. a5 {[%clk 0:02:57]}  c5 {[%clk 0:02:54]} 10. O-O {[%clk 0:02:54]}  Nc7 {[%clk 0:02:53]} 11. c3 {[%clk 0:02:42]}  Ne4 {[%clk 0:02:45]} 12. Nbd2 {[%clk 0:02:40]}  Nxd2 {[%clk 0:02:45]} 13. Nxd2 {[%clk 0:02:41]}  e5 {[%clk 0:02:45]} 14. dxe5 {[%clk 0:02:36]}  dxe5 {[%clk 0:02:45]} 15. Bh2 {[%clk 0:02:36]}  Ne6 {[%clk 0:02:44]} 16. Nc4 {[%clk 0:02:36]}  Qc7 {[%clk 0:02:37]} 17. axb6 {[%clk 0:02:34]}  axb6 {[%clk 0:02:37]} 18. Qb3 {[%clk 0:02:34]}  Rab8 {[%clk 0:02:27]} 19. Qb5 {[%clk 0:02:31]}  Rfd8 {[%clk 0:02:17]} 20. Ra6 {[%clk 0:02:18]}  h6 {[%clk 0:02:07]} 21. Rxb6 {[%clk 0:02:15]}  Rxb6 {[%clk 0:02:07]} 22. Qxb6 {[%clk 0:02:16]}  Qxb6 {[%clk 0:02:07]} 23. Nxb6 {[%clk 0:02:16]}  Rd2 {[%clk 0:02:03]} 24. Nc4 {[%clk 0:02:16]}  Rc2 {[%clk 0:02:03]} 25. Rb1 {[%clk 0:02:07]}  f5 {[%clk 0:02:01]} 26. Bxe5 {[%clk 0:02:07]}  Ng5 {[%clk 0:01:58]} 27. Bxg7 {[%clk 0:02:02]}  Kxg7 {[%clk 0:01:58]} 28. f3 {[%clk 0:02:03]}  Ne6 {[%clk 0:01:53]} 29. Ne5 {[%clk 0:01:52]}  g5 {[%clk 0:01:46]} 30. Nd3 {[%clk 0:01:45]}  Kf6 {[%clk 0:01:36]} 31. Ne1 {[%clk 0:01:44]}  Re2 {[%clk 0:01:35]} 32. b4 {[%clk 0:01:35]}  cxb4 {[%clk 0:01:35]} 33. cxb4 {[%clk 0:01:34]}  Rxe3 {[%clk 0:01:35]} 34. b5 {[%clk 0:01:30]}  Nd8 {[%clk 0:01:30]} 35. b6 {[%clk 0:01:28]}  Nb7 {[%clk 0:01:30]} 36. Nc2 {[%clk 0:01:27]}  Re6 {[%clk 0:01:27]} 37. Kf2 {[%clk 0:01:25]}  Rc6 {[%clk 0:01:26]} 38. Nd4 {[%clk 0:01:24]}  Rc4 {[%clk 0:01:24]} 39. Ke3 {[%clk 0:01:22]}  Ke5 {[%clk 0:01:21]} 40. Ne2 {[%clk 0:01:21]}  Rc5 {[%clk 0:01:16]} 41. g3 {[%clk 0:01:17]}  Ra5 {[%clk 0:01:08]} 42. f4+ {[%clk 0:01:16]}  Kf6 {[%clk 0:01:05]} 43. Rb3 {[%clk 0:01:15]}  Ra6 {[%clk 0:01:02]} 44. Nd4 {[%clk 0:01:06]}  h5 {[%clk 0:00:57]} 45. fxg5+ {[%clk 0:00:58]}  Kxg5 {[%clk 0:00:56]} 46. Kf3 {[%clk 0:00:53]}  Ra4 {[%clk 0:00:52]} 47. Ne6+ {[%clk 0:00:51]}  Kf6 {[%clk 0:00:51]} 48. Nf4 {[%clk 0:00:51]}  Kg5 {[%clk 0:00:44]} 49. h4+ {[%clk 0:00:51]}  Kh6 {[%clk 0:00:43]} 50. Rb5 {[%clk 0:00:50]}  Ra3+ {[%clk 0:00:41]} 51. Kg2 {[%clk 0:00:50]}  Ra6 {[%clk 0:00:38]} 52. Kh3 {[%clk 0:00:45]}  Ra1 {[%clk 0:00:33]} 53. Rxf5 {[%clk 0:00:44]}  Rb1 {[%clk 0:00:32]} 54. Rf6+ {[%clk 0:00:40]}  Kh7 {[%clk 0:00:27]} 55. Rf7+ {[%clk 0:00:40]} 1-0


[Site "https://www.chess.com"]

[Event "Titled Tuesday Blitz October 31 Late 2023"]
[White "Nilsen, Tobias Lang"]
[Black "Muhammad Shahzeb"]
[WhiteFideId "1521624"]
[BlackFideId "7804806"]
[WhiteElo "2531"]
[BlackElo "2335"]
[Result "1-0"]
[Round "2"]
[TimeControl "180+1"]
[Date "2023.10.31"]
[WhiteClock "0:00:57"]
[BlackClock "0:00:00"]
[Board "90"]

1. e4 {[%clk 0:03:00]}  d5 {[%clk 0:02:59]} 2. exd5 {[%clk 0:03:01]}  Nf6 {[%clk 0:02:59]} 3. d4 {[%clk 0:03:01]}  Nxd5 {[%clk 0:02:59]} 4. c4 {[%clk 0:03:02]}  Nb6 {[%clk 0:02:59]} 5. Nc3 {[%clk 0:03:01]}  e5 {[%clk 0:02:59]} 6. dxe5 {[%clk 0:02:58]}  Qxd1+ {[%clk 0:02:58]} 7. Kxd1 {[%clk 0:02:59]}  Nc6 {[%clk 0:02:59]} 8. Bf4 {[%clk 0:02:59]}  Bf5 {[%clk 0:02:56]} 9. Nf3 {[%clk 0:02:47]}  O-O-O+ {[%clk 0:02:57]} 10. Kc1 {[%clk 0:02:47]}  Bc5 {[%clk 0:02:51]} 11. Bg3 {[%clk 0:02:44]}  Nb4 {[%clk 0:02:45]} 12. a3 {[%clk 0:02:41]}  Nd3+ {[%clk 0:02:45]} 13. Bxd3 {[%clk 0:02:40]}  Rxd3 {[%clk 0:02:46]} 14. Rd1 {[%clk 0:02:37]}  Nxc4 {[%clk 0:02:35]} 15. Rxd3 {[%clk 0:02:36]}  Bxd3 {[%clk 0:02:35]} 16. Nd2 {[%clk 0:02:22]}  Rd8 {[%clk 0:02:23]} 17. Nxc4 {[%clk 0:02:09]}  Bxc4 {[%clk 0:02:23]} 18. Kc2 {[%clk 0:02:10]}  Bd3+ {[%clk 0:02:19]} 19. Kb3 {[%clk 0:02:10]}  b5 {[%clk 0:02:08]} 20. Rd1 {[%clk 0:02:06]}  a5 {[%clk 0:02:01]} 21. a4 {[%clk 0:02:04]}  b4 {[%clk 0:01:57]} 22. Nb5 {[%clk 0:02:00]}  Bb6 {[%clk 0:01:47]} 23. Nd6+ {[%clk 0:01:43]}  cxd6 {[%clk 0:01:40]} 24. Rxd3 {[%clk 0:01:43]}  dxe5 {[%clk 0:01:38]} 25. Rxd8+ {[%clk 0:01:44]}  Kxd8 {[%clk 0:01:38]} 26. Bxe5 {[%clk 0:01:44]}  f6 {[%clk 0:01:28]} 27. Bg3 {[%clk 0:01:44]}  Kd7 {[%clk 0:01:28]} 28. Kc4 {[%clk 0:01:44]}  Kc6 {[%clk 0:01:24]} 29. f3 {[%clk 0:01:44]}  h5 {[%clk 0:01:22]} 30. h3 {[%clk 0:01:44]}  g6 {[%clk 0:01:20]} 31. Bf4 {[%clk 0:01:42]}  Bd8 {[%clk 0:01:12]} 32. Be3 {[%clk 0:01:40]}  Bc7 {[%clk 0:01:09]} 33. Bd4 {[%clk 0:01:40]}  f5 {[%clk 0:01:08]} 34. Bf6 {[%clk 0:01:35]}  Bb6 {[%clk 0:01:08]} 35. b3 {[%clk 0:01:35]}  Bc7 {[%clk 0:01:07]} 36. Be7 {[%clk 0:01:33]}  Bb6 {[%clk 0:01:06]} 37. Bf8 {[%clk 0:01:32]}  Ba7 {[%clk 0:01:02]} 38. Bg7 {[%clk 0:01:30]}  Bb6 {[%clk 0:01:02]} 39. Bh6 {[%clk 0:01:24]}  Bc5 {[%clk 0:00:56]} 40. Bg5 {[%clk 0:01:23]}  Bb6 {[%clk 0:00:53]} 41. Be7 {[%clk 0:01:18]}  Bc7 {[%clk 0:00:49]} 42. Kd4 {[%clk 0:01:18]}  Kd7 {[%clk 0:00:36]} 43. Bf8 {[%clk 0:01:12]}  Kc6 {[%clk 0:00:33]} 44. Bh6 {[%clk 0:01:03]}  Bd6 {[%clk 0:00:31]} 45. Bg5 {[%clk 0:01:02]}  Bc7 {[%clk 0:00:30]} 46. Bh4 {[%clk 0:01:01]}  Bb6+ {[%clk 0:00:10]} 47. Ke5 {[%clk 0:01:01]}  Ba7 {[%clk 0:00:04]} 48. Bd8 {[%clk 0:00:58]}  Bb6 {[%clk 0:00:02]} 49. Bxb6 {[%clk 0:00:57]}  Kxb6 {[%clk 0:00:03]} 50. Kd6 {[%clk 0:00:57]}  Kb7 {[%clk 0:00:00]} 51. Kc5 {[%clk 0:00:57]} 1-0


[Site "https://www.chess.com"]

[Event "Titled Tuesday Blitz October 31 Late 2023"]
[White "Sturt, Raven"]
[Black "VitaliyChayka"]
[WhiteFideId "2007304"]
[WhiteElo "2527"]
[BlackElo "2153"]
[Result "1/2-1/2"]
[Round "2"]
[TimeControl "180+1"]
[Date "2023.10.31"]
[WhiteClock "0:00:08"]
[BlackClock "0:00:02"]
[Board "92"]

1. f4 {[%clk 0:03:00]}  d5 {[%clk 0:02:56]} 2. Nf3 {[%clk 0:03:01]}  c6 {[%clk 0:02:55]} 3. e3 {[%clk 0:03:01]}  Bf5 {[%clk 0:02:54]} 4. Be2 {[%clk 0:02:56]}  e6 {[%clk 0:02:53]} 5. O-O {[%clk 0:02:56]}  h6 {[%clk 0:02:53]} 6. Nd4 {[%clk 0:02:54]}  Bh7 {[%clk 0:02:52]} 7. a3 {[%clk 0:02:48]}  Nf6 {[%clk 0:02:51]} 8. b4 {[%clk 0:02:48]}  Bd6 {[%clk 0:02:49]} 9. Bb2 {[%clk 0:02:48]}  Nbd7 {[%clk 0:02:47]} 10. d3 {[%clk 0:02:46]}  a5 {[%clk 0:02:43]} 11. bxa5 {[%clk 0:02:41]}  Rxa5 {[%clk 0:02:39]} 12. Nd2 {[%clk 0:02:42]}  O-O {[%clk 0:02:34]} 13. Qe1 {[%clk 0:02:40]}  Qe7 {[%clk 0:02:33]} 14. N2f3 {[%clk 0:02:39]}  Rfa8 {[%clk 0:02:31]} 15. Ne5 {[%clk 0:02:09]}  Bxa3 {[%clk 0:02:14]} 16. Bc3 {[%clk 0:02:08]}  R5a6 {[%clk 0:02:11]} 17. Qg3 {[%clk 0:02:05]}  Bd6 {[%clk 0:02:04]} 18. Nxd7 {[%clk 0:02:03]}  Qxd7 {[%clk 0:01:51]} 19. Nxc6 {[%clk 0:01:54]}  Qxc6 {[%clk 0:01:37]} 20. Bxf6 {[%clk 0:01:52]}  Bf8 {[%clk 0:01:36]} 21. Rxa6 {[%clk 0:01:40]}  Rxa6 {[%clk 0:01:37]} 22. Bd1 {[%clk 0:01:40]}  Kh8 {[%clk 0:01:36]} 23. Bd4 {[%clk 0:01:39]}  Ra2 {[%clk 0:01:33]} 24. Qh4 {[%clk 0:01:36]}  Kg8 {[%clk 0:01:27]} 25. g4 {[%clk 0:01:34]}  Bc5 {[%clk 0:01:25]} 26. Qd8+ {[%clk 0:01:34]}  Bf8 {[%clk 0:01:23]} 27. f5 {[%clk 0:01:19]}  exf5 {[%clk 0:01:15]} 28. gxf5 {[%clk 0:01:19]}  Rxc2 {[%clk 0:01:10]} 29. f6 {[%clk 0:01:00]}  Bxd3 {[%clk 0:00:58]} 30. Bh5 {[%clk 0:00:51]}  Rc1 {[%clk 0:00:41]} 31. Qxf8+ {[%clk 0:00:24]}  Kxf8 {[%clk 0:00:31]} 32. fxg7+ {[%clk 0:00:24]}  Ke7 {[%clk 0:00:26]} 33. g8=Q {[%clk 0:00:20]}  Rxf1+ {[%clk 0:00:24]} 34. Kg2 {[%clk 0:00:20]}  Qc2+ {[%clk 0:00:22]} 35. Kh3 {[%clk 0:00:21]}  Bf5+ {[%clk 0:00:11]} 36. Bg4 {[%clk 0:00:21]}  Bxg4+ {[%clk 0:00:08]} 37. Qxg4 {[%clk 0:00:20]}  Qf5 {[%clk 0:00:08]} 38. Qxf5 {[%clk 0:00:19]}  Rxf5 {[%clk 0:00:09]} 39. Kg4 {[%clk 0:00:20]}  Rg5+ {[%clk 0:00:08]} 40. Kf4 {[%clk 0:00:20]}  f6 {[%clk 0:00:08]} 41. h4 {[%clk 0:00:20]}  Rh5 {[%clk 0:00:07]} 42. Kg4 {[%clk 0:00:20]}  Re5 {[%clk 0:00:07]} 43. Kf4 {[%clk 0:00:18]}  Ke6 {[%clk 0:00:07]} 44. Kg4 {[%clk 0:00:16]}  b5 {[%clk 0:00:07]} 45. Bxe5 {[%clk 0:00:13]}  Kxe5 {[%clk 0:00:04]} 46. Kh5 {[%clk 0:00:14]}  f5 {[%clk 0:00:03]} 47. Kxh6 {[%clk 0:00:14]}  f4 {[%clk 0:00:04]} 48. exf4+ {[%clk 0:00:14]}  Kxf4 {[%clk 0:00:05]} 49. h5 {[%clk 0:00:11]}  d4 {[%clk 0:00:05]} 50. Kg7 {[%clk 0:00:12]}  d3 {[%clk 0:00:06]} 51. h6 {[%clk 0:00:11]}  d2 {[%clk 0:00:07]} 52. h7 {[%clk 0:00:12]}  d1=Q {[%clk 0:00:07]} 53. h8=Q {[%clk 0:00:13]}  Qg1+ {[%clk 0:00:07]} 54. Kf7 {[%clk 0:00:11]}  Qa7+ {[%clk 0:00:05]} 55. Ke6 {[%clk 0:00:11]}  Qb6+ {[%clk 0:00:05]} 56. Kd5 {[%clk 0:00:10]}  Qb7+ {[%clk 0:00:04]} 57. Kc5 {[%clk 0:00:10]}  Qc7+ {[%clk 0:00:03]} 58. Kb4 {[%clk 0:00:09]}  Qe7+ {[%clk 0:00:01]} 59. Kxb5 {[%clk 0:00:08]}  Qe5+ {[%clk 0:00:01]} 60. Qxe5+ {[%clk 0:00:08]}  Kxe5 {[%clk 0:00:02]} 1/2-1/2


[Site "https://www.chess.com"]

[Event "Titled Tuesday Blitz October 31 Late 2023"]
[White "Pinto, Daniel"]
[Black "Zhigalko, Sergei"]
[WhiteFideId "3303144"]
[BlackFideId "13502956"]
[WhiteElo "2407"]
[BlackElo "2902"]
[Result "0-1"]
[Round "2"]
[TimeControl "180+1"]
[Date "2023.10.31"]
[WhiteClock "0:00:06"]
[BlackClock "0:00:44"]
[Board "94"]

1. e4 {[%clk 0:02:59]}  c5 {[%clk 0:03:00]} 2. Nf3 {[%clk 0:02:58]}  Nc6 {[%clk 0:03:00]} 3. Bb5 {[%clk 0:02:58]}  Nf6 {[%clk 0:03:00]} 4. Nc3 {[%clk 0:02:44]}  Qc7 {[%clk 0:03:00]} 5. d3 {[%clk 0:02:07]}  d6 {[%clk 0:02:58]} 6. h3 {[%clk 0:02:04]}  e6 {[%clk 0:02:56]} 7. O-O {[%clk 0:02:00]}  Bd7 {[%clk 0:02:56]} 8. a4 {[%clk 0:01:42]}  a6 {[%clk 0:02:50]} 9. Bc4 {[%clk 0:01:40]}  Be7 {[%clk 0:02:49]} 10. Nh2 {[%clk 0:01:34]}  Nb4 {[%clk 0:02:42]} 11. Bf4 {[%clk 0:01:10]}  O-O {[%clk 0:02:39]} 12. Ne2 {[%clk 0:00:59]}  b5 {[%clk 0:02:37]} 13. Bb3 {[%clk 0:00:52]}  c4 {[%clk 0:02:35]} 14. dxc4 {[%clk 0:00:52]}  bxc4 {[%clk 0:02:35]} 15. c3 {[%clk 0:00:49]}  cxb3 {[%clk 0:01:54]} 16. cxb4 {[%clk 0:00:50]}  e5 {[%clk 0:01:54]} 17. Bg5 {[%clk 0:00:40]}  Be6 {[%clk 0:01:54]} 18. Bxf6 {[%clk 0:00:31]}  Bxf6 {[%clk 0:01:54]} 19. Nc3 {[%clk 0:00:32]}  Qb7 {[%clk 0:01:38]} 20. b5 {[%clk 0:00:25]}  axb5 {[%clk 0:01:34]} 21. axb5 {[%clk 0:00:26]}  Qb6 {[%clk 0:01:10]} 22. Ng4 {[%clk 0:00:24]}  Bg5 {[%clk 0:01:11]} 23. Qd3 {[%clk 0:00:17]}  h5 {[%clk 0:01:09]} 24. Ne3 {[%clk 0:00:09]}  Bxe3 {[%clk 0:01:09]} 25. Qxe3 {[%clk 0:00:09]}  Qd4 {[%clk 0:00:58]} 26. Rad1 {[%clk 0:00:06]}  Qb4 {[%clk 0:00:58]} 27. Qb6 {[%clk 0:00:04]}  Rfd8 {[%clk 0:00:56]} 28. Rd2 {[%clk 0:00:04]}  Rab8 {[%clk 0:00:56]} 29. Qc7 {[%clk 0:00:03]}  Rbc8 {[%clk 0:00:53]} 30. Qb6 {[%clk 0:00:04]}  Qc5 {[%clk 0:00:53]} 31. Qxc5 {[%clk 0:00:04]}  dxc5 {[%clk 0:00:52]} 32. Rfd1 {[%clk 0:00:04]}  Rd4 {[%clk 0:00:53]} 33. f3 {[%clk 0:00:04]}  Bc4 {[%clk 0:00:53]} 34. b6 {[%clk 0:00:03]}  Rb8 {[%clk 0:00:51]} 35. Na4 {[%clk 0:00:04]}  Be2 {[%clk 0:00:50]} 36. Rxd4 {[%clk 0:00:04]}  cxd4 {[%clk 0:00:50]} 37. Rd2 {[%clk 0:00:04]}  Bb5 {[%clk 0:00:51]} 38. Nc5 {[%clk 0:00:05]}  Rxb6 {[%clk 0:00:51]} 39. Nxb3 {[%clk 0:00:06]}  Bc4 {[%clk 0:00:45]} 40. Nc1 {[%clk 0:00:06]}  Ra6 {[%clk 0:00:45]} 41. Kf2 {[%clk 0:00:06]}  Ra1 {[%clk 0:00:45]} 42. Ne2 {[%clk 0:00:06]}  h4 {[%clk 0:00:43]} 43. f4 {[%clk 0:00:06]}  f6 {[%clk 0:00:43]} 44. fxe5 {[%clk 0:00:06]}  fxe5 {[%clk 0:00:44]} 45. Ng1 {[%clk 0:00:06]}  Rf1# {[%clk 0:00:44]} 0-1


[Site "https://www.chess.com"]

[Event "Titled Tuesday Blitz October 31 Late 2023"]
[White "Hambleton, Aman"]
[Black "Ahn, Hongjin"]
[WhiteFideId "2606577"]
[BlackFideId "13201492"]
[WhiteElo "2799"]
[BlackElo "2398"]
[Result "0-1"]
[Round "2"]
[TimeControl "180+1"]
[Date "2023.10.31"]
[WhiteClock "0:00:00"]
[BlackClock "0:01:19"]
[Board "98"]

1. d4 {[%clk 0:02:45]}  d5 {[%clk 0:02:59]} 2. Bf4 {[%clk 0:02:45]}  e6 {[%clk 0:02:54]} 3. e3 {[%clk 0:02:45]}  c5 {[%clk 0:02:55]} 4. c3 {[%clk 0:02:45]}  Bd6 {[%clk 0:02:55]} 5. Nf3 {[%clk 0:02:44]}  Nc6 {[%clk 0:02:53]} 6. Bg3 {[%clk 0:02:41]}  Nge7 {[%clk 0:02:49]} 7. Nbd2 {[%clk 0:02:41]}  Nf5 {[%clk 0:02:49]} 8. Bxd6 {[%clk 0:02:39]}  Qxd6 {[%clk 0:02:48]} 9. Bd3 {[%clk 0:02:39]}  Nfe7 {[%clk 0:02:43]} 10. dxc5 {[%clk 0:02:24]}  Qxc5 {[%clk 0:02:43]} 11. e4 {[%clk 0:02:24]}  O-O {[%clk 0:02:40]} 12. e5 {[%clk 0:01:57]}  f6 {[%clk 0:02:30]} 13. exf6 {[%clk 0:00:42]}  Rxf6 {[%clk 0:02:31]} 14. Nb3 {[%clk 0:00:31]}  Qd6 {[%clk 0:02:29]} 15. Qc2 {[%clk 0:00:16]}  g6 {[%clk 0:02:23]} 16. O-O {[%clk 0:00:03]}  e5 {[%clk 0:02:23]} 17. Be2 {[%clk 0:00:03]}  Bf5 {[%clk 0:02:21]} 18. Qd2 {[%clk 0:00:03]}  Raf8 {[%clk 0:02:21]} 19. Rae1 {[%clk 0:00:02]}  a5 {[%clk 0:01:58]} 20. Qh6 {[%clk 0:00:02]}  R6f7 {[%clk 0:01:39]} 21. Ng5 {[%clk 0:00:02]}  Rg7 {[%clk 0:01:40]} 22. a3 {[%clk 0:00:01]}  Bc2 {[%clk 0:01:38]} 23. Nd2 {[%clk 0:00:01]}  Qf6 {[%clk 0:01:35]} 24. Ngf3 {[%clk 0:00:01]}  e4 {[%clk 0:01:33]} 25. Nd4 {[%clk 0:00:01]}  Nxd4 {[%clk 0:01:33]} 26. cxd4 {[%clk 0:00:02]}  Qxd4 {[%clk 0:01:34]} 27. Qe3 {[%clk 0:00:01]}  Qxe3 {[%clk 0:01:31]} 28. fxe3 {[%clk 0:00:02]}  Nf5 {[%clk 0:01:27]} 29. Rc1 {[%clk 0:00:02]}  Nxe3 {[%clk 0:01:17]} 30. Rxf8+ {[%clk 0:00:01]}  Kxf8 {[%clk 0:01:18]} 31. Kf2 {[%clk 0:00:00]}  d4 {[%clk 0:01:19]} 0-1


[Site "https://www.chess.com"]

[Event "Titled Tuesday Blitz October 31 Late 2023"]
[White "Tanenbaum, Zachary"]
[Black "Spichkin, Alexander"]
[WhiteFideId "2060850"]
[BlackFideId "4144074"]
[WhiteElo "2709"]
[BlackElo "2398"]
[Result "0-1"]
[Round "2"]
[TimeControl "180+1"]
[Date "2023.10.31"]
[WhiteClock "0:00:05"]
[BlackClock "0:00:53"]
[Board "99"]

1. e4 {[%clk 0:03:00]}  e5 {[%clk 0:03:00]} 2. Nf3 {[%clk 0:03:00]}  d5 {[%clk 0:02:58]} 3. exd5 {[%clk 0:03:00]}  e4 {[%clk 0:02:56]} 4. Qe2 {[%clk 0:02:59]}  Nf6 {[%clk 0:02:56]} 5. Nc3 {[%clk 0:02:58]}  Be7 {[%clk 0:02:54]} 6. Nxe4 {[%clk 0:02:58]}  Nxd5 {[%clk 0:02:54]} 7. d3 {[%clk 0:02:57]}  O-O {[%clk 0:02:54]} 8. Qd1 {[%clk 0:02:54]}  Re8 {[%clk 0:02:53]} 9. Be2 {[%clk 0:02:53]}  Bb4+ {[%clk 0:02:50]} 10. Bd2 {[%clk 0:02:48]}  f5 {[%clk 0:02:50]} 11. Nc3 {[%clk 0:02:45]}  Bxc3 {[%clk 0:02:38]} 12. bxc3 {[%clk 0:02:45]}  Qe7 {[%clk 0:02:38]} 13. c4 {[%clk 0:02:41]}  Nf6 {[%clk 0:02:36]} 14. Bg5 {[%clk 0:02:08]}  Bd7 {[%clk 0:02:28]} 15. Bxf6 {[%clk 0:02:02]}  gxf6 {[%clk 0:02:28]} 16. Qd2 {[%clk 0:01:58]}  Nc6 {[%clk 0:02:26]} 17. Rb1 {[%clk 0:01:45]}  a5 {[%clk 0:02:22]} 18. Rxb7 {[%clk 0:01:36]}  Nb4 {[%clk 0:02:18]} 19. Nd4 {[%clk 0:01:10]}  Bc8 {[%clk 0:01:55]} 20. Rb5 {[%clk 0:01:09]}  c6 {[%clk 0:01:51]} 21. Nxf5 {[%clk 0:01:01]}  Bxf5 {[%clk 0:01:41]} 22. Rxf5 {[%clk 0:01:02]}  Rab8 {[%clk 0:01:41]} 23. Rf3 {[%clk 0:00:55]}  Nxc2+ {[%clk 0:01:34]} 24. Kd1 {[%clk 0:00:46]}  Nd4 {[%clk 0:01:31]} 25. Rg3+ {[%clk 0:00:41]}  Kh8 {[%clk 0:01:31]} 26. Re3 {[%clk 0:00:10]}  Rb1+ {[%clk 0:01:28]} 27. Qc1 {[%clk 0:00:10]}  Rxc1+ {[%clk 0:01:28]} 28. Kxc1 {[%clk 0:00:11]}  Qa3+ {[%clk 0:01:25]} 29. Kd2 {[%clk 0:00:09]}  Rxe3 {[%clk 0:01:18]} 30. Kxe3 {[%clk 0:00:09]}  Nxe2 {[%clk 0:01:16]} 31. Kxe2 {[%clk 0:00:10]}  Qxa2+ {[%clk 0:01:16]} 32. Ke3 {[%clk 0:00:10]}  a4 {[%clk 0:01:14]} 33. Re1 {[%clk 0:00:10]}  a3 {[%clk 0:01:15]} 34. Kf3 {[%clk 0:00:10]}  Qd2 {[%clk 0:01:14]} 35. Re8+ {[%clk 0:00:09]}  Kg7 {[%clk 0:01:14]} 36. Ra8 {[%clk 0:00:08]}  Qxd3+ {[%clk 0:01:12]} 37. Kg4 {[%clk 0:00:08]}  Kg6 {[%clk 0:01:12]} 38. f3 {[%clk 0:00:07]}  Qxc4+ {[%clk 0:01:11]} 39. Kg3 {[%clk 0:00:07]}  a2 {[%clk 0:01:11]} 40. h4 {[%clk 0:00:07]}  f5 {[%clk 0:01:09]} 41. Kh3 {[%clk 0:00:06]}  Qb3 {[%clk 0:01:03]} 42. Ra6 {[%clk 0:00:04]}  Kf7 {[%clk 0:01:00]} 43. Ra7+ {[%clk 0:00:04]}  Ke6 {[%clk 0:01:00]} 44. Ra6 {[%clk 0:00:04]}  Kd6 {[%clk 0:01:00]} 45. h5 {[%clk 0:00:04]}  h6 {[%clk 0:01:00]} 46. g4 {[%clk 0:00:04]}  Qxf3+ {[%clk 0:00:59]} 47. Kh2 {[%clk 0:00:04]}  Qf4+ {[%clk 0:00:59]} 48. Kh3 {[%clk 0:00:04]}  Qxg4+ {[%clk 0:00:59]} 49. Kh2 {[%clk 0:00:05]}  Qxh5+ {[%clk 0:01:00]} 50. Kg3 {[%clk 0:00:05]}  Qe2 {[%clk 0:01:00]} 51. Ra3 {[%clk 0:00:04]}  Qb2 {[%clk 0:00:59]} 52. Rd3+ {[%clk 0:00:03]}  Ke6 {[%clk 0:01:00]} 53. Re3+ {[%clk 0:00:04]}  Kf6 {[%clk 0:01:00]} 54. Rf3 {[%clk 0:00:04]}  a1=Q {[%clk 0:00:54]} 55. Rf2 {[%clk 0:00:04]}  Qg1+ {[%clk 0:00:53]} 56. Kh3 {[%clk 0:00:04]}  Qg4+ {[%clk 0:00:52]} 57. Kh2 {[%clk 0:00:05]}  Qxf2+ {[%clk 0:00:52]} 58. Kh1 {[%clk 0:00:05]}  Qgg1# {[%clk 0:00:53]} 0-1


[Site "https://www.chess.com"]

[Event "Titled Tuesday Blitz October 31 Late 2023"]
[White "Martinez Ramirez, Lennis"]
[Black "Lebedev, Artem S."]
[WhiteFideId "3509079"]
[BlackFideId "34272747"]
[WhiteElo "2707"]
[BlackElo "2397"]
[Result "0-1"]
[Round "2"]
[TimeControl "180+1"]
[Date "2023.10.31"]
[WhiteClock "0:00:39"]
[BlackClock "0:00:10"]
[Board "100"]

1. b3 {[%clk 0:03:00]}  Nf6 {[%clk 0:02:56]} 2. Bb2 {[%clk 0:03:01]}  e6 {[%clk 0:02:57]} 3. g3 {[%clk 0:03:00]}  Be7 {[%clk 0:02:58]} 4. Bg2 {[%clk 0:03:01]}  d5 {[%clk 0:02:59]} 5. Nf3 {[%clk 0:03:02]}  O-O {[%clk 0:02:59]} 6. O-O {[%clk 0:03:03]}  c5 {[%clk 0:03:00]} 7. d3 {[%clk 0:03:03]}  Nc6 {[%clk 0:03:00]} 8. e3 {[%clk 0:03:03]}  b5 {[%clk 0:02:59]} 9. Nbd2 {[%clk 0:03:04]}  Bb7 {[%clk 0:02:59]} 10. Ne5 {[%clk 0:03:04]}  Nxe5 {[%clk 0:02:56]} 11. Bxe5 {[%clk 0:03:05]}  Nd7 {[%clk 0:02:56]} 12. Bb2 {[%clk 0:03:05]}  Bf6 {[%clk 0:02:56]} 13. Qc1 {[%clk 0:03:05]}  Bxb2 {[%clk 0:02:54]} 14. Qxb2 {[%clk 0:03:06]}  b4 {[%clk 0:02:43]} 15. f4 {[%clk 0:02:48]}  Qf6 {[%clk 0:02:29]} 16. Qxf6 {[%clk 0:02:45]}  Nxf6 {[%clk 0:02:30]} 17. h3 {[%clk 0:02:45]}  a5 {[%clk 0:02:30]} 18. a4 {[%clk 0:02:45]}  Ba6 {[%clk 0:02:21]} 19. g4 {[%clk 0:02:42]}  Rac8 {[%clk 0:02:18]} 20. g5 {[%clk 0:02:42]}  Nd7 {[%clk 0:02:16]} 21. Rfd1 {[%clk 0:02:42]}  Nb6 {[%clk 0:02:14]} 22. Nf3 {[%clk 0:02:38]}  c4 {[%clk 0:02:11]} 23. Bf1 {[%clk 0:02:27]}  cxb3 {[%clk 0:02:06]} 24. cxb3 {[%clk 0:02:27]}  Rc3 {[%clk 0:02:03]} 25. Nd4 {[%clk 0:02:23]}  Nd7 {[%clk 0:02:01]} 26. Rac1 {[%clk 0:02:22]}  Rfc8 {[%clk 0:01:59]} 27. Rxc3 {[%clk 0:02:22]}  Rxc3 {[%clk 0:01:59]} 28. Kf2 {[%clk 0:01:48]}  Nc5 {[%clk 0:01:53]} 29. Nb5 {[%clk 0:01:48]}  Rc2+ {[%clk 0:01:32]} 30. Kf3 {[%clk 0:01:43]}  Nxb3 {[%clk 0:01:32]} 31. d4 {[%clk 0:01:29]}  Nd2+ {[%clk 0:01:19]} 32. Kg4 {[%clk 0:01:28]}  Nxf1 {[%clk 0:01:17]} 33. Rxf1 {[%clk 0:01:28]}  Kf8 {[%clk 0:00:50]} 34. Rb1 {[%clk 0:01:27]}  Ke7 {[%clk 0:00:44]} 35. f5 {[%clk 0:01:26]}  Kd7 {[%clk 0:00:29]} 36. f6 {[%clk 0:01:26]}  g6 {[%clk 0:00:29]} 37. Kf4 {[%clk 0:01:21]}  Bxb5 {[%clk 0:00:29]} 38. axb5 {[%clk 0:01:21]}  Kc7 {[%clk 0:00:29]} 39. Ke5 {[%clk 0:01:18]}  Rc4 {[%clk 0:00:22]} 40. h4 {[%clk 0:01:07]}  a4 {[%clk 0:00:20]} 41. b6+ {[%clk 0:01:05]}  Kxb6 {[%clk 0:00:20]} 42. Kd6 {[%clk 0:01:05]}  b3 {[%clk 0:00:19]} 43. Ke7 {[%clk 0:01:06]}  Rc7+ {[%clk 0:00:19]} 44. Kf8 {[%clk 0:01:06]}  Kb5 {[%clk 0:00:19]} 45. h5 {[%clk 0:00:52]}  gxh5 {[%clk 0:00:14]} 46. Kg7 {[%clk 0:00:51]}  Kb4 {[%clk 0:00:15]} 47. Kxh7 {[%clk 0:00:41]}  a3 {[%clk 0:00:15]} 48. Kg7 {[%clk 0:00:42]}  a2 {[%clk 0:00:14]} 49. Rc1 {[%clk 0:00:42]}  Rxc1 {[%clk 0:00:13]} 50. Kxf7 {[%clk 0:00:42]}  a1=Q {[%clk 0:00:13]} 51. g6 {[%clk 0:00:43]}  Rc7+ {[%clk 0:00:14]} 52. Kxe6 {[%clk 0:00:43]}  Qa6+ {[%clk 0:00:13]} 53. Kf5 {[%clk 0:00:43]}  Qc8+ {[%clk 0:00:11]} 54. Kg5 {[%clk 0:00:42]}  Qg4+ {[%clk 0:00:12]} 55. Kh6 {[%clk 0:00:42]}  Rc6 {[%clk 0:00:11]} 56. Kg7 {[%clk 0:00:42]}  h4 {[%clk 0:00:11]} 57. e4 {[%clk 0:00:41]}  Qxe4 {[%clk 0:00:09]} 58. f7 {[%clk 0:00:38]}  Qxg6+ {[%clk 0:00:08]} 59. Kf8 {[%clk 0:00:39]}  Rc8+ {[%clk 0:00:08]} 60. Ke7 {[%clk 0:00:39]}  Rc7+ {[%clk 0:00:09]} 61. Kd8 {[%clk 0:00:39]}  Rxf7 {[%clk 0:00:09]} 62. Ke8 {[%clk 0:00:39]}  Qg8# {[%clk 0:00:10]} 0-1


[Site "https://www.chess.com"]